bitfinex-derivatives/quotes_SOLF0:USTF0_20251223
["timestamp","ask_amount","ask_price","bid_price","bid_amount"]
[1766495945712,4.81994215,124.13,124.09,0.06041862]
[1766495947329,1.59994215,124.13,124.09,3.57041862]
[1766495947530,7.30947141,124.14,124.09,3.57041862]
[1766495947828,10.52947141,124.14,124.09,3.57041862]
[1766495948521,10.52947141,124.14,124.09,0.06041862]
[1766495948522,3.22,124.13,124.09,0.06041862]
[1766495948724,4.81994215,124.13,124.09,0.06041862]
[1766495949728,3.22,124.12,124.09,0.06041862]
[1766495958936,3.22,124.12,124.09,0.00041862]
[1766495961838,112.829,124.16,124.09,0.00041862]
[1766495961839,3.22,124.17,124.11,3.51]
[1766495962543,3.22,124.17,124.11,10.7658]
[1766495962743,0.05542881,124.15,124.13,0.05161855]
[1766495968340,3.22,124.19,124.13,3.56161855]
[1766495968540,1.59994215,124.2,124.13,3.56161855]
[1766495968848,4.81994215,124.2,124.13,3.51]
[1766495969341,4.81994215,124.2,124.15,0.05107688]
[1766495969547,0.05357968,124.18,124.15,0.05107688]
[1766495971147,0.05357968,124.18,124.15,3.48107688]
[1766495971343,3.22,124.22,124.17,3.43]
[1766495972344,0.05948988,124.21,124.18,0.05325558]
[1766495977052,3.26948988,124.21,124.18,0.05325558]
[1766495980459,0.05948988,124.21,124.18,0.05325558]
[1766495983464,3.21,124.23,124.18,0.05325558]
[1766495985272,4.80994215,124.27,124.19,4.92994215]
[1766495985567,0.05608075,124.24,124.18,4.92994215]
[1766495985768,3.26608075,124.24,124.18,12.18174215]
[1766495986066,3.26608075,124.24,124.18,10.5818]
[1766495986664,3.26608075,124.24,124.2,0.05201557]
[1766495990964,3.26608075,124.24,124.2,0.00201557]
[1766495992760,10.51448075,124.24,124.2,0.00201557]
[1766495992966,3.21,124.23,124.2,0.00201557]
[1766496003277,0.05608075,124.24,124.2,10.62251557]
[1766496004574,0.05608075,124.24,124.2,3.37201557]
[1766496008573,3.23608075,124.24,124.2,0.00201557]
[1766496010682,3.18,124.23,124.2,0.00201557]
[1766496010870,3.18,124.21,124.14,3.37]
[1766496011074,3.18,124.21,124.14,98.45]
[1766496011287,3.18,124.18,124.1,10.6263]
[1766496011584,3.18,124.18,124.11,3.37]
[1766496011585,3.18,124.17,124.11,3.37]
[1766496011977,0.05527746,124.15,124.13,0.0522524]
[1766496013179,3.18,124.17,124.13,0.0522524]
[1766496013985,3.18,124.19,124.13,0.0522524]
[1766496014185,0.05275104,124.17,124.13,0.0522524]
[1766496017290,0.05275104,124.17,124.14,3.37]
[1766496017589,0.05275104,124.17,124.05,3.37]
[1766496017590,3.18,124.14,124.05,3.37]
[1766496017791,3.18,124.12,124.05,3.37]
[1766496018491,0.06059667,124.1,124.07,0.0527677]
[1766496019279,3.18,124.12,124.07,0.0527677]
[1766496019485,3.18,124.14,124.08,3.37]
[1766496020500,0.05087154,124.12,124.1,0.05895482]
[1766496020688,0.05087154,124.12,124.07,95.1]
[1766496020986,3.23087154,124.12,124.07,95.1]
[1766496021694,3.23087154,124.12,124.08,0.05243008]
[1766496023686,0.05087154,124.12,124.08,0.05243008]
[1766496026799,7.2526,124.17,124.09,3.37]
[1766496027098,3.18,124.16,124.09,3.37]
[1766496027597,3.18,124.16,124.09,10.6269]
[1766496027798,0.05796402,124.14,124.11,0.05368562]
[1766496030500,3.18,124.18,124.11,3.42368562]
[1766496030798,3.18,124.18,124.11,3.37]
[1766496031387,3.18,124.18,124.13,0.05123325]
[1766496034699,10.4319,124.18,124.13,0.00123325]
[1766496034897,3.47,124.17,124.13,0.00123325]
[1766496035511,3.47,124.16,124.13,0.00123325]
[1766496035804,3.5209908,124.16,124.13,0.00123325]
[1766496040609,3.47,124.15,124.09,7.2567]
[1766496041007,3.47,124.15,124.07,105.8078]
[1766496041309,3.47,124.15,124.07,102.3578]
[1766496041707,3.47,124.14,124.07,105.8078]
[1766496041907,0.05222405,124.12,124.09,0.05260354]
[1766496043903,3.47,124.14,124.09,7.30960354]
[1766496052017,3.47,124.17,124.11,3.45]
[1766496052312,112.7922,124.2,124.13,0.05460402]
[1766496052313,3.47,124.19,124.13,0.05460402]
[1766496053621,10.7213,124.19,124.13,0.05460402]
[1766496054117,3.47,124.18,124.13,0.05460402]
[1766496060316,10.7219,124.18,124.13,0.05460402]
[1766496060516,3.47,124.17,124.13,0.05460402]
[1766496061425,3.35,124.16,124.13,0.00460402]
[1766496061722,4.94886162,124.15,124.13,0.00460402]
[1766496062318,4.99886162,124.15,124.13,0.00460402]
[1766496062514,3.35,124.13,124.03,3.26]
[1766496062726,4.94886162,124.11,124.04,3.26]
[1766496063421,4.94886162,124.11,124.06,0.06072734]
[1766496063620,0.00460402,124.09,124.06,3.32072734]
[1766496064922,3.35,124.13,124.06,3.32072734]
[1766496068530,3.35,124.13,124.06,0.06072734]
[1766496068727,3.35,124.1,124.06,0.06072734]
[1766496070832,3.35,124.12,124.06,3.32072734]
[1766496073329,3.35,124.14,124.07,3.26]
[1766496073534,3.35,124.14,124.09,0.05545525]
[1766496078628,3.35,124.12,124.07,7.258]
[1766496078828,3.35,124.12,124.05,7.2592]
[1766496079031,3.35,124.12,124.05,10.5192]
[1766496079632,0.05481668,124.1,124.07,0.06086234]
[1766496089639,3.40481668,124.1,124.07,0.06086234]
[1766496094448,3.40481668,124.1,124.07,0.00086234]
[1766496097753,3.21,124.08,124.03,98.34]
[1766496098251,3.21,124.08,124.03,105.6005]
[1766496098645,0.05776701,124.07,124.04,0.05737009]
[1766496099652,0.05776701,124.07,124.04,7.31727009]
[1766496099837,3.21,124.08,124.04,7.31727009]
[1766496100852,0.051301,124.07,124.04,7.31727009]
[1766496104654,3.261301,124.07,124.04,7.31727009]
[1766496105442,3.261301,124.07,124.02,7.2608]
[1766496106441,3.261301,124.07,124.03,0.05266449]
[1766496111153,3.261301,124.07,124.03,0.00266449]
[1766496112349,3.21,124.06,124.03,0.00266449]
[1766496120863,3.21,124.06,124.0,98.42]
[1766496122063,0.06007517,124.04,124.02,0.06147201]
[1766496128969,3.39007517,124.04,124.02,0.00147201]
[1766496131876,3.39007517,124.04,123.96,3.36]
[1766496132064,3.33,124.04,123.96,3.36]
[1766496132266,3.33,124.04,123.97,3.36]
[1766496132778,0.05199356,124.02,123.99,0.05199593]
[1766496133168,3.38199356,124.02,123.99,0.05199593]
[1766496133368,3.38199356,124.02,123.95,3.36]
[1766496133573,3.33,124.02,123.95,3.36]
[1766496134373,0.05911693,124.0,123.97,0.05272943]
[1766496134773,3.38911693,124.0,123.97,0.05272943]
[1766496142383,3.38911693,124.0,123.97,0.00272943]
[1766496149790,0.05911693,124.0,123.97,0.00272943]
[1766496150184,0.05911693,124.0,123.97,10.62682943]
[1766496150383,3.33,124.02,123.97,3.36272943]
[1766496150589,7.2594,124.06,123.97,3.36272943]
[1766496150790,2.502892,124.09,124.0,7.2619]
[1766496150994,97.742892,124.09,124.0,7.2619]
[1766496151490,0.0519438,124.06,124.03,0.00189251]
[1766496152483,3.3419438,124.06,124.03,0.00189251]
[1766496156889,0.0519438,124.06,124.03,0.00189251]
[1766496158592,0.0519438,124.06,124.03,7.26239251]
[1766496162696,0.0519438,124.06,124.03,0.00189251]
[1766496170499,0.0519438,124.06,124.03,3.35189251]
[1766496170697,0.0019438,124.06,124.03,3.35189251]
[1766496170897,3.33,124.1,124.05,3.35]
[1766496171802,0.06177392,124.09,124.06,0.05917855]
[1766496174205,0.06177392,124.09,124.03,10.6101]
[1766496174206,3.39177392,124.09,124.03,10.6101]
[1766496175303,3.39177392,124.09,124.05,0.05671409]
[1766496178593,0.06177392,124.09,124.05,3.40671409]
[1766496179503,0.06177392,124.09,124.05,10.66601409]
[1766496186005,3.39177392,124.09,124.05,0.05671409]
[1766496186306,4.93046795,124.08,124.05,0.05671409]
[1766496186698,3.33,124.08,124.05,0.05671409]
[1766496193808,4.93046795,124.07,124.01,105.7613]
[1766496194011,3.33,124.06,124.01,105.7613]
[1766496194205,4.93046795,124.05,124.01,95.22]
[1766496194808,0.05343158,124.04,124.02,0.0572119]
[1766496195005,0.05343158,124.04,123.99,3.28]
[1766496195212,1.65389953,124.04,123.99,3.28]
[1766496195917,1.65389953,124.04,124.0,0.05262223]
[1766496196618,4.98389953,124.04,124.0,0.05262223]
[1766496196911,3.33,124.03,124.0,0.05262223]
[1766496197703,1.60046795,124.02,124.0,0.00262223]
[1766496198510,4.92046795,124.02,123.97,7.2636]
[1766496199418,3.32,124.01,123.97,7.2636]
[1766496199722,0.05827789,124.0,123.98,0.05176047]
[1766496204516,4.97874584,124.0,123.95,10.5448]
[1766496204717,3.37827789,124.0,123.95,10.5448]
[1766496205422,3.37827789,124.0,123.96,0.05955218]
[1766496208211,3.37827789,124.0,123.94,95.22]
[1766496208411,4.97874584,124.0,123.94,95.22]
[1766496208620,3.37827789,124.0,123.94,98.5]
[1766496209114,3.37827789,124.0,123.94,105.7657]
[1766496209315,3.37827789,124.0,123.96,0.05373487]
[1766496209518,0.05827789,124.0,123.96,0.05373487]
[1766496209818,0.05827789,124.0,123.96,3.33373487]
[1766496210019,0.05827789,124.0,123.96,10.59833487]
[1766496210926,0.05827789,124.0,123.97,7.2641]
[1766496212219,0.05827789,124.0,123.96,3.33373487]
[1766496213021,0.05827789,124.0,123.96,10.59843487]
[1766496215134,0.05827789,124.0,123.96,3.33373487]
[1766496217226,0.05827789,124.0,123.96,10.59833487]
[1766496217431,4.82046795,124.03,123.97,3.39]
[1766496217633,4.82046795,124.03,123.97,10.6541]
[1766496217834,4.82046795,124.03,123.98,3.39]
[1766496218040,3.22,124.03,123.98,3.39]
[1766496218440,0.05649148,124.02,123.99,0.06066712]
[1766496225251,3.36,123.99,123.89,114.66616795]
[1766496225437,1.60046795,123.97,123.89,114.66616795]
[1766496226150,0.05902389,123.94,123.92,0.05654866]
[1766496226651,0.05902389,123.94,123.92,7.32324866]
[1766496226848,0.05902389,123.94,123.92,0.05654866]
[1766496231546,3.36,123.98,123.92,3.44654866]
[1766496232557,0.06092365,123.96,123.92,3.44654866]
[1766496233256,0.06092365,123.96,123.92,10.71354866]
[1766496234158,1.60046795,123.99,123.93,10.6564]
[1766496234358,4.96046795,123.99,123.93,10.6564]
[1766496235157,0.05874972,123.97,123.95,0.05988549]
[1766496239661,1.65921767,123.97,123.89,3.39]
[1766496239862,1.60046795,123.97,123.89,3.39]
[1766496240059,2.507205,123.98,123.89,3.39]
[1766496240666,0.05129917,123.95,123.92,0.05333057]
[1766496243170,7.2628,124.0,123.93,3.48]
[1766496243371,2.507205,124.01,123.93,3.48]
[1766496244273,0.05852984,123.98,123.96,0.06075793]
[1766496244967,2.507205,124.03,123.96,3.54075793]
[1766496245473,2.507205,124.04,123.96,3.54075793]
[1766496245664,2.507205,124.04,123.96,3.48]
[1766496246171,0.05540396,124.01,123.96,3.48]
[1766496247072,0.05540396,124.01,123.97,0.05419142]
[1766496249780,2.507205,124.0,123.97,0.00419142]
[1766496250279,7.31730396,124.01,123.97,0.00419142]
[1766496254866,0.05540396,124.01,123.97,0.00419142]
[1766496255980,0.05540396,124.01,123.97,3.48419142]
[1766496258682,0.05540396,124.01,123.97,10.74819142]
[1766496258985,0.05540396,124.01,123.98,3.48]
[1766496266888,0.05540396,124.01,123.97,0.00419142]
[1766496267987,0.05540396,124.01,123.97,10.74829142]
[1766496268184,0.05540396,124.01,123.98,3.48]
[1766496269588,2.507205,124.04,123.98,10.7434]
[1766496269790,95.28,124.05,123.99,3.48]
[1766496270391,95.28,124.05,123.99,10.7429]
[1766496270585,0.05974725,124.03,124.01,0.06107491]
[1766496271189,2.507205,124.08,124.01,3.39107491]
[1766496271390,2.507205,124.08,124.01,3.33]
[1766496272495,0.05238572,124.06,124.03,0.05698467]
[1766496289900,95.24,124.1,124.04,3.45]
[1766496290092,2.507205,124.13,124.04,3.45]
[1766496290988,0.05175718,124.1,124.07,0.06129459]
[1766496308117,0.05175718,124.1,124.07,3.43129459]
[1766496308418,102.4747,124.14,124.07,3.43129459]
[1766496308419,96.82063603,124.14,124.07,3.43129459]
[1766496308610,95.22,124.14,124.07,3.43129459]
[1766496308923,95.22,124.14,124.09,3.37]
[1766496309417,0.05728187,124.13,124.1,0.05756777]
[1766496314920,1.6579179,124.13,124.1,0.05756777]
[1766496315125,1.6579179,124.13,124.07,3.37]
[1766496316024,1.6579179,124.13,124.09,0.05207583]
[1766496316822,8.9127179,124.13,124.09,0.05207583]
[1766496328640,1.60063603,124.11,124.09,0.00207583]
[1766496331137,7.2554,124.12,124.09,0.00207583]
[1766496336136,1.60063603,124.11,124.09,0.00207583]
[1766496350457,7.2554,124.12,124.09,0.00207583]
[1766496350657,1.60063603,124.11,124.09,0.00207583]
[1766496352855,0.05728187,124.13,124.09,0.00207583]
[1766496353048,1.60063603,124.12,124.09,0.00207583]
[1766496353446,0.05728187,124.13,124.09,3.52207583]
[1766496358964,0.05728187,124.13,124.09,10.77907583]
[1766496363160,0.05728187,124.13,124.09,0.00207583]
[1766496363558,2.49980196,124.12,124.09,0.00207583]
[1766496369068,9.75520196,124.12,124.09,0.00207583]
[1766496380979,9.75520196,124.12,124.07,3.4]
[1766496382174,95.18,124.11,124.08,0.06131055]
[1766496382378,2.49980196,124.1,124.05,3.4]
[1766496382575,2.49980196,124.1,124.03,10.6601]
[1766496382777,2.49980196,124.08,124.03,10.6601]
[1766496383279,0.05328737,124.07,124.04,0.05903948]
[1766496383478,0.05328737,124.07,124.04,3.45903948]
[1766496394291,0.05328737,124.07,124.04,0.05903948]
[1766496394491,0.05328737,124.07,124.02,3.41]
[1766496395783,0.05328737,124.07,124.03,0.05624757]
[1766496402696,7.31158737,124.07,124.03,0.05624757]
[1766496407911,9.81138933,124.07,124.03,0.05624757]
[1766496412916,0.05328737,124.07,124.03,3.33624757]
[1766496416916,7.31168737,124.07,124.03,3.33624757]
[1766496418717,0.05328737,124.07,124.03,3.33624757]
[1766496420519,7.2564,124.11,124.04,0.49]
[1766496420713,102.4764,124.11,124.04,0.49]
[1766496421117,105.8364,124.11,124.04,0.49]
[1766496421719,105.8364,124.11,124.06,0.05870807]
[1766496421720,0.05297531,124.09,124.06,0.05870807]
[1766496426022,3.41297531,124.09,124.06,0.05870807]
[1766496426324,1.60096659,124.08,124.01,7.2615]
[1766496427217,0.06122492,124.06,124.03,0.05425383]
[1766496433822,0.06122492,124.06,124.03,7.31475383]
[1766496434017,1.60096659,124.1,124.03,0.05425383]
[1766496434734,4.96096659,124.1,124.03,0.05425383]
[1766496434922,0.05554548,124.08,124.03,0.05425383]
[1766496435625,0.05554548,124.08,124.04,7.2596]
[1766496443141,0.05554548,124.08,124.05,7.2594]
[1766496444636,1.60096659,124.11,124.05,95.2]
[1766496445236,5.07096659,124.13,124.05,95.2]
[1766496445637,0.05473012,124.1,124.08,0.05279401]
[1766496450648,3.52473012,124.1,124.08,0.00279401]
[1766496452048,3.52473012,124.1,124.05,102.4589]
[1766496453150,3.52473012,124.1,124.06,0.05652115]
[1766496480969,3.52473012,124.1,124.06,7.31522115]
[1766496481979,3.52473012,124.1,124.07,7.2582]
[1766496482179,2.06870926,124.15,124.06,0.05652115]
[1766496482180,3.2,124.12,124.06,0.05652115]
[1766496482394,3.2,124.14,124.08,112.894]
[1766496482683,3.2,124.18,124.11,1.60096659]
[1766496482873,6.11230107,124.22,124.13,114.45216659]
[1766496483077,0.05878291,124.19,124.16,0.06114443]
[1766496483278,6.10107479,124.24,124.16,0.06114443]
[1766496483581,112.7189,124.28,124.16,114.42216659]
[1766496483884,1.60096659,124.26,124.18,1.60096659]
[1766496484075,2.49490108,124.28,124.17,115.30840108]
[1766496484275,6.10297288,124.29,124.21,0.05954797]
[1766496484472,0.05378717,124.24,124.2,7.2505]
[1766496484672,112.6754,124.33,124.2,112.7847]
[1766496484980,3.2,124.29,124.2,112.7847]
[1766496485385,3.2,124.29,124.21,7.2495]
[1766496485685,0.05272082,124.26,124.24,0.0596489]
[1766496485881,3.25272082,124.26,124.17,112.8135]
[1766496486080,3.2,124.26,124.17,112.8135]
[1766496486687,2.49490108,124.28,124.17,112.8135]
[1766496486985,0.05253774,124.24,124.21,0.06042612]
[1766496488187,0.05253774,124.24,124.21,0.00042612]
[1766496492585,2.54743882,124.24,124.15,7.2534]
[1766496492786,2.49490108,124.24,124.15,7.2534]
[1766496493676,0.0588796,124.21,124.18,0.05985972]
[1766496493885,2.49490108,124.28,124.18,0.05985972]
[1766496494086,2.49490108,124.28,124.17,112.8128]
[1766496494288,7.2456,124.29,124.19,7.2509]
[1766496494682,7.2445,124.31,124.22,7.2493]
[1766496494994,2.49490108,124.32,124.25,0.05780306]
[1766496495291,2.49490108,124.32,124.22,112.7685]
[1766496495883,210.33490108,124.35,124.22,112.7685]
[1766496495884,0.05505798,124.28,124.26,0.05961948]
[1766496496085,2.49490108,124.33,124.24,7.2482]
[1766496497087,0.05904195,124.3,124.27,0.0532887]
[1766496498582,97.67490108,124.35,124.27,0.0532887]
[1766496498892,2.49490108,124.36,124.27,112.7231]
[1766496499197,5.70425872,124.38,124.27,112.7231]
[1766496499491,2.49490108,124.35,124.25,112.7423]
[1766496499683,0.05831217,124.31,124.29,0.05533614]
[1766496501384,3.20935764,124.38,124.29,0.05533614]
[1766496501691,3.20935764,124.38,124.27,112.7225]
[1766496501993,3.20935764,124.38,124.29,112.707]
[1766496502393,3.20935764,124.38,124.32,0.05946793]
[1766496502695,2.49490108,124.39,124.32,0.05946793]
[1766496502891,2.49490108,124.37,124.28,112.7158]
[1766496503098,2.49490108,124.37,124.27,112.7225]
[1766496503299,112.5953,124.42,124.27,112.7225]
[1766496503300,112.5953,124.42,124.3,112.6956]
[1766496503601,0.05610831,124.37,124.35,0.05336664]
[1766496503802,0.05393404,124.37,124.35,0.05336664]
[1766496503994,2.49490108,124.42,124.35,0.05336664]
[1766496504198,2.49490108,124.4,124.3,112.6956]
[1766496504496,2.49490108,124.4,124.29,112.7044]
[1766496504890,9.73420108,124.4,124.31,7.244]
[1766496505096,0.05192151,124.36,124.33,0.06071582]
[1766496509597,99.70269587,124.43,124.33,0.06071582]
[1766496509804,99.70269587,124.43,124.33,112.6703]
[1766496510003,99.70269587,124.43,124.34,112.6589]
[1766496510199,99.70269587,124.43,124.36,7.2411]
[1766496510705,99.70269587,124.43,124.38,0.06010948]
[1766496511400,4.60269587,124.43,124.38,0.06010948]
[1766496511991,9.587e-05,124.43,124.38,0.06010948]
[1766496512398,9.587e-05,124.43,124.38,112.68310948]
[1766496513296,9.587e-05,124.43,124.4,112.6076]
[1766496513898,9.587e-05,124.43,124.41,7.238]
[1766496514203,9.587e-05,124.43,124.41,7.29565001]
[1766496514803,9.587e-05,124.43,124.41,0.05765001]
[1766496519404,9.587e-05,124.43,124.41,7.29575001]
[1766496519595,9.587e-05,124.43,124.41,119.89415001]
[1766496520310,9.587e-05,124.43,124.41,7.29575001]
[1766496520698,9.587e-05,124.43,124.41,0.05765001]
[1766496522809,9.587e-05,124.43,124.35,225.2975]
[1766496523616,9.587e-05,124.43,124.37,7.2404]
[1766496523910,0.05837872,124.41,124.39,0.06147627]
[1766496524216,9.587e-05,124.43,124.39,7.30067627]
[1766496525916,9.587e-05,124.43,124.4,7.2389]
[1766496527810,9.587e-05,124.43,124.39,0.06147627]
[1766496531020,9.587e-05,124.43,124.41,7.2383]
[1766496534018,9.587e-05,124.43,124.41,8.8383]
[1766496534226,112.4763,124.55,124.45,7.2361]
[1766496534426,2.02743326,124.57,124.49,0.00073189]
[1766496535017,7.2306,124.55,124.49,0.00073189]
[1766496535221,2.02743326,124.57,124.46,112.5525]
[1766496535418,0.0530909,124.53,124.5,0.05230458]
[1766496535623,0.0530909,124.53,124.5,0.05338825]
[1766496536018,0.0530909,124.53,124.5,0.00338825]
[1766496552538,0.0530909,124.53,124.51,7.2325]
[1766496552739,0.0030909,124.53,124.51,7.2325]
[1766496553947,0.0030909,124.53,124.5,0.00338825]
[1766496554455,0.0030909,124.53,124.43,112.5791]
[1766496554642,112.4754,124.55,124.43,112.5791]
[1766496554837,7.2327,124.51,124.43,7.237]
[1766496555050,112.4731,124.55,124.43,112.5776]
[1766496555247,0.05146221,124.5,124.48,0.05782146]
[1766496555547,0.05564581,124.5,124.48,0.05782146]
[1766496556343,0.05564581,124.5,124.42,112.5829]
[1766496556543,112.4837,124.54,124.42,112.5829]
[1766496557448,0.05804822,124.49,124.47,0.05874927]
[1766496557641,0.051204,124.49,124.47,0.05874927]
[1766496558643,0.051204,124.49,124.44,7.2365]
[1766496559747,0.051204,124.49,124.45,0.05582546]
[1766496563357,7.285104,124.49,124.4,7.2386]
[1766496563545,7.2339,124.49,124.38,112.6207]
[1766496564058,7.2339,124.49,124.41,7.2383]
[1766496564351,0.05192125,124.46,124.44,0.05711495]
[1766496566453,0.05192125,124.46,124.38,112.6207]
[1766496566759,112.5127,124.51,124.39,112.6164]
[1766496567360,0.05917915,124.46,124.44,0.00132544]
[1766496567559,7.2339,124.49,124.44,0.00132544]
[1766496568562,0.06152738,124.48,124.44,0.00132544]
[1766496571270,7.29592738,124.48,124.44,0.00132544]
[1766496572362,0.06152738,124.48,124.44,0.00132544]
[1766496576767,0.06152738,124.48,124.34,62.0]
[1766496576970,218.3934,124.73,124.35,136.769]
[1766496577161,112.3289,124.71,124.36,24.12]
[1766496577360,1.39739394,124.64,124.36,24.12]
[1766496577771,1.39739394,124.64,124.49,0.05888228]
[1766496577970,7.2262,124.63,124.43,7.2368]
[1766496578366,1.39739394,124.64,124.43,7.2368]
[1766496578768,0.05274936,124.55,124.43,7.2368]
[1766496579066,7.2273,124.61,124.43,7.2368]
[1766496579368,7.2286,124.58,124.39,7.2393]
[1766496579970,0.05593861,124.5,124.47,0.05276906]
[1766496580170,0.05693481,124.5,124.47,0.05983245]
[1766496580370,7.2286,124.58,124.47,0.05983245]
[1766496580567,7.2286,124.58,124.4,62.0]
[1766496581376,0.05435045,124.5,124.48,0.0538076]
[1766496581568,0.05406336,124.5,124.48,0.05970251]
[1766496583367,1.65406336,124.5,124.35,7.2414]
[1766496583562,7.2304,124.55,124.35,7.2414]
[1766496584366,0.05338771,124.46,124.35,7.2414]
[1766496584566,7.2304,124.55,124.35,7.2414]
[1766496585374,0.0618161,124.46,124.44,0.05963941]
[1766496585576,7.2304,124.55,124.35,7.2414]
[1766496585878,0.05813167,124.46,124.44,0.05536492]
[1766496586076,0.0602629,124.46,124.44,0.05675925]
[1766496591282,0.0002629,124.46,124.44,0.05675925]
[1766496591680,0.0002629,124.46,124.36,62.0]
[1766496591871,7.2321,124.52,124.33,7.243]
[1766496592381,118.86,124.58,124.29,7.2449]
[1766496592382,7.2338,124.49,124.29,7.2449]
[1766496592784,0.05571402,124.4,124.24,24.12]
[1766496592983,7.2338,124.49,124.24,48.32719558]
[1766496593184,7.2338,124.49,124.26,24.12]
[1766496593783,0.05229878,124.39,124.36,0.05478241]
[1766496593978,0.05470595,124.39,124.36,0.05543058]
[1766496594492,0.00470595,124.39,124.36,0.05543058]
[1766496594879,7.2318,124.53,124.36,1.65543058]
[1766496595081,7.2318,124.53,124.31,24.12]
[1766496596092,0.05078929,124.43,124.41,0.05655494]
[1766496596392,7.2296,124.57,124.41,0.05949369]
[1766496596583,7.2296,124.57,124.34,31.3624]
[1766496596784,7.2296,124.57,124.37,7.2407]
[1766496597395,0.05996272,124.48,124.46,0.0019462]
[1766496597588,7.2296,124.57,124.37,7.2407]
[1766496598386,0.0509763,124.48,124.37,7.2407]
[1766496598586,7.2296,124.57,124.37,7.2407]
[1766496599496,0.05909651,124.48,124.46,0.05996433]
[1766496599796,0.05268524,124.48,124.46,0.05417841]
[1766496600198,0.05268524,124.48,124.46,0.00417841]
[1766496600999,0.05268524,124.48,124.38,62.0]
[1766496601202,7.2312,124.54,124.33,7.2426]
[1766496601397,179.0,124.6,124.33,7.2426]
[1766496601696,7.2326,124.52,124.3,7.2448]
[1766496601899,315.5585,124.59,124.21,112.7794]
[1766496602101,0.05106962,124.41,124.39,0.05279789]
[1766496602305,0.05495144,124.41,124.39,0.05278405]
[1766496602806,0.05495144,124.41,124.29,7.2449]
[1766496603105,7.2337,124.5,124.29,7.2449]
[1766496603805,0.05280553,124.41,124.29,7.2449]
[1766496604006,136.5871,124.56,124.29,7.2449]
[1766496604007,24.12,124.56,124.29,7.2449]
[1766496604305,7.2343,124.49,124.31,7.2442]
[1766496604802,0.05411015,124.41,124.39,0.05773986]
[1766496604995,0.05954516,124.41,124.39,0.05342492]
[1766496605604,0.05954516,124.41,124.39,0.00342492]
[1766496606901,0.05954516,124.41,124.27,7.2461]
[1766496607112,7.2359,124.46,124.27,7.2461]
[1766496607608,7.2359,124.46,124.28,62.0]
[1766496607908,0.05823123,124.38,124.28,62.0]
[1766496608112,7.2359,124.46,124.28,62.0]
[1766496608907,0.05837449,124.38,124.36,0.05077514]
[1766496609212,0.0604681,124.38,124.36,0.05077514]
[1766496610514,7.2337,124.5,124.36,0.05077514]
[1766496610716,179.0,124.6,124.29,24.12]
[1766496610911,118.56,124.59,124.29,24.12]
[1766496611314,7.2315,124.53,124.33,7.2429]
[1766496611510,0.06113451,124.44,124.42,0.05136163]
[1766496611711,0.05388159,124.44,124.42,0.05511943]
[1766496612320,0.05388159,124.44,124.33,7.2429]
[1766496612509,7.2332,124.51,124.29,31.3649]
[1766496612710,7.2332,124.51,124.29,7.2449]
[1766496613315,0.0520525,124.41,124.39,0.05246335]
[1766496613514,0.05434152,124.41,124.39,0.05301395]
[1766496614012,7.2332,124.51,124.39,0.05301395]
[1766496614209,7.2332,124.51,124.29,7.2449]
[1766496614517,7.2332,124.51,124.32,7.2435]
[1766496614913,0.06096113,124.43,124.4,0.05127305]
[1766496615221,0.05797508,124.43,124.4,0.05673957]
[1766496617618,7.231,124.54,124.4,0.05673957]
[1766496617820,7.231,124.54,124.34,7.242]
[1766496618216,7.231,124.54,124.34,31.362]
[1766496618720,0.05718693,124.45,124.43,0.05433663]
[1766496618917,0.05716041,124.45,124.43,0.06184828]
[1766496619325,7.231,124.54,124.43,0.00184828]
[1766496619518,7.231,124.54,124.36,7.2408]
[1766496620525,0.0541717,124.46,124.44,0.0585644]
[1766496620725,0.0507897,124.46,124.44,0.0530761]
[1766496621020,0.0507897,124.46,124.44,0.0030761]
[1766496621226,1.6507897,124.46,124.31,62.0]
[1766496621424,24.12,124.5,124.19,112.7918]
[1766496621627,24.12,124.5,124.2,207.4665]
[1766496622123,7.2349,124.48,124.34,0.06064279]
[1766496622326,7.2349,124.48,124.27,7.2466]
[1766496622920,7.2362,124.45,124.27,7.2466]
[1766496623120,7.2362,124.45,124.35,0.06134947]
[1766496623121,0.0615628,124.37,124.35,0.06134947]
[1766496623320,0.0615628,124.37,124.35,0.05607252]